Cogmind - Beta 10.2 @@@ ROGUE MODE // 2021.06.17 @ 00:31:53 Player: derk Result: Escaped! Performance ------------- Evolutions (9) 4500 Regions Visited (27) 5400 Robots Destroyed (270) 1350 Value Destroyed (8993) 8993 Prototype IDs (54) 1080 Alien Tech Used (0) 0 Bonus (3778) 3778 TOTAL SCORE: 25101 Bonus ------- High Alert Combat Kills 75 Follower Combat Kills 1107 Network Hubs Disabled 200 Aligned with FarCom 300 Met Data Miner 300 Met Zhirov 300 Win 3000 Friendly Fire -1504 Cogmind --------- Core Integrity 1441/1600 Matter 251/300 Energy 392/420 System Corruption 3% Temperature Cool (102) Movement Hovering (55) Location To Epsilon Eridani Parts ------- > --- POWER (2) -------- Micro Fission Core Quantum Reactor > --- PROPULSION (5) --- Combat Gravmag System Combat Gravmag System Cooled Antigrav System Antigrav Array > --- UTILITY (15) ----- Fusion Compressor Advanced Heat Sink Medium Storage Unit Medium Storage Unit Large Storage Unit Spectral Analyzer Advanced Signal Interpreter Improved Targeting Computer Light Regenerative Plating Light Regenerative Plating Hacking Suite Advanced Hacking Suite System Shield Advanced System Shield > --- WEAPON (3) ------- Long-range Proton Cannon Long-range Proton Cannon Nova Cannon > --- INVENTORY (18) --- Micro Fission Core Particle Reactor Improved Antigrav System Improved Antigrav System Advanced Overload Regulator Hacking Suite Hacking Suite Hacking Suite Improved Field Recycling Unit (0) Bomb Factory No. 2 Long-range Proton Cannon HERF Cannon Heavy Disruptor Cannon Heavy Pick Heavy Pick Peak State ------------ > --- POWER ------------ Micro Fission Core Quantum Reactor > --- PROPULSION ------- Combat Gravmag System Combat Gravmag System Cooled Antigrav System Antigrav Array > --- UTILITY ---------- Fusion Compressor Advanced Heat Sink Advanced Heat Sink Medium Storage Unit Medium Storage Unit Large Storage Unit Advanced Matter Compressor Spectral Analyzer Advanced Signal Interpreter Improved Targeting Computer Light Regenerative Plating Hacking Suite Advanced Hacking Suite System Shield Advanced System Shield > --- WEAPON ----------- Long-range Proton Cannon Compact HERF Cannon Nova Cannon > --- INVENTORY -------- Micro Fission Core Particle Reactor Improved Antigrav System Improved Antigrav System Advanced Overload Regulator Light Regenerative Plating Hacking Suite Hacking Suite Hacking Suite Improved Field Recycling Unit Bomb Factory No. 2 Long-range Proton Cannon Long-range Proton Cannon HERF Cannon Heavy Pick Heavy Pick [Rating: 147] Favorites ----------- Power Micro Fission Core Engine Improved Ion Engine Power Core Micro Fission Core Reactor Quantum Reactor Propulsion Combat Gravmag System Treads Light Treads Leg Flexi-carbon Leg Wheel Armored Wheel Hover Unit Combat Gravmag System Flight Unit Improved Flight Unit Utility Improved Hacking Suite Device Advanced Heat Sink Storage High-capacity Storage Unit Processor Improved Targeting Computer Hackware Improved Hacking Suite Protection Hardened Medium Armor Plating Weapon Advanced Beam Cannon Energy Gun EM Pulse Gun Energy Cannon Advanced Beam Cannon Ballistic Gun Assault Rifle Launcher Advanced EMP Blaster Slashing Weapon Makeshift Sword Piercing Weapon Lance Special Melee Weapon Datajack Build | -11 -10 -10 -9 -9 -9 -8 -8 -8 -7 -7 -7 -7 -6 -6 -6 -6 -6 -5 -5 -5 -5 -5 -5 -4 -3 -2 -1 ------- Run | Scr Mat Min Mat Min Exi Min Mat Sto Fac Low Low Dat Pro Fac Low Low Zio Pro Fac Ext Cet Arc Hub Fac Res Res Acc Slots Evolved 18 | . . . 2 . . . 2 . 2 . . . . 2 . . . . 2 . . . . 2 2 2 2 Power 1 | . . . . . . . . . 1 . . . . . . . . . . . . . . . . . . Propulsion 3 | . . . . . . . 1 . 1 . . . . . . . . . 1 . . . . . . . . Utility 13 | . . . 2 . . . 1 . . . . . . 2 . . . . 1 . . . . 2 2 2 1 Weapon 1 | . . . . . . . . . . . . . . . . . . . . . . . . . . . 1 Parts Attached 475 | 7 11 1 29 2 3 3 15 17 36 8 15 . . 21 9 4 10 29 34 72 15 1 10 54 48 7 14 Power 57 | 1 1 . 3 . . . . 1 6 . . . . 6 2 1 2 1 3 9 3 . . 5 5 4 4 Engine 16 | 1 1 . 3 . . . . 1 . . . . . 4 1 . 2 . . 3 . . . . . . . Core 32 | . . . . . . . . . 6 . . . . 2 1 1 . 1 3 6 2 . . 4 3 2 1 Reactor 9 | . . . . . . . . . . . . . . . . . . . . . 1 . . 1 2 2 3 Propulsion 89 | 2 . 1 13 . . . 4 3 10 . . . . 4 . . . 8 13 1 2 1 3 12 12 . . Treads 35 | 2 . 1 13 . . . 4 3 . . . . . . . . . 3 4 . 2 1 1 1 . . . Leg 6 | . . . . . . . . . . . . . . . . . . 2 . . . . . 3 1 . . Wheel 3 | . . . . . . . . . . . . . . . . . . 3 . . . . . . . . . Hover 31 | . . . . . . . . . 1 . . . . . . . . . 8 1 . . 2 8 11 . . Flight 14 | . . . . . . . . . 9 . . . . 4 . . . . 1 . . . . . . . . Utility 210 | 1 4 . 7 2 2 . 4 5 16 2 5 . . 10 5 2 5 20 12 49 4 . 1 26 20 3 5 Device 107 | . . . . 1 1 . 1 2 4 1 2 . . 3 3 . 3 16 8 33 1 . . 18 6 2 2 Storage 24 | 1 2 . 1 . 1 . . 1 1 . . . . . . . . 2 2 4 1 . 1 2 3 1 1 Processor 15 | . 2 . 1 . . . . . 1 . . . . 1 . 1 1 1 . 1 . . . 3 3 . . Hackware 18 | . . . 1 . . . 1 . 6 1 . . . 3 . . . . 1 . . . . 2 2 . 1 Protection 46 | . . . 4 1 . . 2 2 4 . 3 . . 3 2 1 1 1 1 11 2 . . 1 6 . 1 Artifact . | . . . . . . . . . . . . . . . . . . . . . . . . . . . . Weapon 119 | 3 6 . 6 . 1 3 7 8 4 6 10 . . 1 2 1 3 . 6 13 6 . 6 11 11 . 5 Energy Gun 12 | 3 . . . . . . . . 1 . . . . . . . 1 . 1 . . . . 6 . . . Energy Cannon 40 | . . . 2 . 1 1 5 4 . . . . . . . 1 . . 2 8 2 . 2 2 6 . 4 Ballistic Gun 27 | . 5 . 4 . . . 1 2 . . . . . . . . . . . 3 4 . 3 1 4 . . Ballistic Cannon . | . . . . . . . . . . . . . . . . . . . . . . . . . . . . Launcher 31 | . . . . . . 2 1 1 2 6 10 . . 1 2 . 1 . 3 2 . . . . . . . Special Weapon . | . . . . . . . . . . . . . . . . . . . . . . . . . . . . Impact Weapon . | . . . . . . . . . . . . . . . . . . . . . . . . . . . . Slashing Weapon 4 | . . . . . . . . 1 1 . . . . . . . 1 . . . . . . . 1 . . Piercing Weapon 4 | . . . . . . . . . . . . . . . . . . . . . . . 1 2 . . 1 Special Melee Weapon 1 | . 1 . . . . . . . . . . . . . . . . . . . . . . . . . . Unidentified Prototypes 18 | . . . 1 . . . 1 1 1 . . . . . . . 1 . 2 . 3 . 1 2 3 1 1 Parts Lost 81 | . 1 1 . . . . 3 1 . 1 . . . 6 1 . . 1 5 12 4 . 8 16 19 . 2 Power 18 | . . . . . . . . . . . . . . 2 . . . . 1 5 1 . 2 4 3 . . Propulsion 22 | . . 1 . . . . 1 . . . . . . 1 . . . . 2 1 2 . 2 6 6 . . Utility 27 | . . . . . . . 1 . . 1 . . . 2 1 . . 1 1 4 . . 4 5 6 . 1 Weapon 14 | . 1 . . . . . 1 1 . . . . . 1 . . . . 1 2 1 . . 1 4 . 1 Highest Loss Streak 10 | . 1 1 . . . . 1 1 . 1 . . . 6 1 . . 1 2 2 3 . 8 8 10 . 1 Average Slot Usage (%) 92 | . 98 99 99 100 93 88 89 89 97 99 100 100 100 93 93 89 97 95 92 96 88 78 76 76 95 85 92 Engine 5 | . 13 14 11 11 11 11 9 9 . . . . . 4 6 . 10 12 1 1 . . . 3 . . . Core 4 | . . . . . . . . . 14 15 15 15 15 7 6 13 2 . 8 9 5 5 4 4 4 7 2 Treads 10 | . 28 27 21 22 22 22 26 26 . . . . . . . . . 3 5 . 8 11 10 3 . . . Wheel 1 | . . . . . . . . . . . . . . . . . . 7 7 . . . . . . . . Hover 7 | . . . . . . . . . . . . . . . . . . . 12 28 10 5 5 11 16 17 16 Flight 4 | . . . . . . . . . 29 30 30 30 30 26 26 26 26 14 . . . . . . . . . Device 9 | . . . . . 4 11 9 16 5 7 6 7 7 . 9 6 6 12 9 13 10 11 11 16 9 4 11 Storage 14 | . 24 28 28 33 27 22 18 10 7 7 7 7 7 6 6 6 6 9 15 11 11 11 10 4 11 12 12 Processor 3 | . 3 . . . . . . . . 7 7 7 7 6 6 2 5 3 . 2 1 . . 10 11 13 12 Hackware 8 | . . . 2 . . . 3 . 20 14 15 15 15 21 20 20 20 13 12 11 11 11 10 5 14 13 13 Protection 4 | . . . 12 10 6 . 5 8 2 . . . . 9 2 6 5 1 5 2 9 11 6 1 4 8 8 Energy Cannon 4 | . . . 3 11 14 17 16 14 . . . . . . . . . . . 3 1 . . . 3 8 11 Ballistic Gun 3 | . 20 28 18 11 7 . . 2 . . . . . . . . . . . 2 7 2 . . . . . Launcher 1 | . . . . . . 4 1 . 6 7 7 7 7 1 . . 4 6 2 1 . . . . . . . Slashing Weapon 2 | . . . . . . . . . 6 7 7 7 7 6 6 6 6 6 5 3 . . . . 2 . . Naked Turns . | . . . . . . . . . . . . . . . . . . . . . . . . . . . . Heaviest Build 139 | 13 73 73 118 118 134 128 139 137 108 29 25 24 24 25 23 24 33 64 110 109 114 101 104 73 73 80 113 Greatest Support 160 | 40 40 40 43 40 40 40 66 66 66 25 25 25 25 26 24 24 33 45 116 116 160 160 160 80 114 106 106 Greatest Overweight (x) 35 | . 1 3 5 2 3 3 2 2 1 1 . . . . . . . 2 4 35 1 1 2 4 1 . 1 Average Overweight (x) . | . . 1 1 2 2 3 1 1 . . . . . . . . . . . . . . . . . . . Largest Inventory Capacity 44 | 6 20 20 28 28 32 32 32 44 28 8 8 8 8 8 8 8 8 8 16 18 18 18 18 14 18 18 18 Average Capacity 17 | 5 17 20 24 28 29 32 32 25 8 8 8 8 8 8 8 8 8 8 15 17 18 18 17 7 16 17 18 Most Carried 32 | 6 20 20 28 28 32 32 32 30 24 8 8 8 8 8 8 8 8 8 16 18 18 18 18 14 18 18 18 Average Carried 16 | 3 15 19 24 27 28 31 31 25 8 7 8 8 8 5 7 7 7 6 12 14 17 17 16 6 14 16 17 Final Capacity 32 | 6 20 20 28 28 32 32 32 24 8 8 8 8 8 8 8 8 8 8 16 18 18 18 4 14 18 18 18 Final Carried 32 | 6 20 19 28 28 32 32 30 24 8 8 8 8 8 8 8 8 8 7 16 18 18 18 4 12 15 18 17 Class Distribution -------------------- 34% | Hauler-Mutant 23% | Scavenger-Mutant 15% | Hacker-Sprinter 14% | Hacker-Mutant 7% | Machinist-Mutant 3% | Mutant Dominant Class ---------------- Hauler-Mutant | -10/Materials Hauler-Mutant | -10/Mines Hauler-Mutant | -9/Materials Hauler-Mutant | -9/Mines Hauler-Mutant | -9/Exiles Hauler-Mutant | -8/Mines Hauler-Mutant | -8/Materials Hauler-Mutant | -8/Storage Hacker-Sprinter | -7/Factory Hacker-Sprinter | -7/Lower Caves Hacker-Sprinter | -7/Lower Caves Hacker-Sprinter | -7/Data Miner Hacker-Sprinter | -6/Proximity Caves Hacker-Sprinter | -6/Factory Hacker-Sprinter | -6/Lower Caves Hacker-Sprinter | -6/Lower Caves Hacker-Sprinter | -6/Zion Hacker-Mutant | -5/Proximity Caves Hacker-Mutant | -5/Factory Scavenger-Mutant | -5/Extension Scavenger-Mutant | -5/Cetus Scavenger-Mutant | -5/Archives Scavenger-Mutant | -5/Hub_04(d) Scavenger-Mutant | -4/Factory Hacker-Mutant | -3/Research Hacker-Mutant | -2/Research Hacker-Mutant | -1/Access Resources | -11 -10 -10 -9 -9 -9 -8 -8 -8 -7 -7 -7 -7 -6 -6 -6 -6 -6 -5 -5 -5 -5 -5 -5 -4 -3 -2 -1 ----------- Run | Scr Mat Min Mat Min Exi Min Mat Sto Fac Low Low Dat Pro Fac Low Low Zio Pro Fac Ext Cet Arc Hub Fac Res Res Acc Matter Collected 11758 | 253 321 85 690 52 6 128 253 288 334 151 225 . . 125 190 40 80 1766 885 3842 164 . 277 632 653 . 318 Remotely . | . . . . . . . . . . . . . . . . . . . . . . . . . . . . Salvage Created 12320 | 74 580 95 1020 124 . 196 491 1456 477 353 400 . . 336 257 25 62 140 274 2247 544 . 127 1211 1021 . 810 Parts 555 | 2 41 7 56 7 . 20 21 55 25 13 13 . . 13 12 . . 8 19 75 19 . 2 56 58 . 33 Haulers Intercepted 18 | . 2 . 5 . . . 1 1 3 . . . . . . . . . . 5 . . . 1 . . . Recyclers Shooed 13 | . . . 3 1 . . . 1 1 . . . . 1 . . . . . 2 . . . 1 2 . 1 Parts Field Recycled 100 | . . . . . . . . . . . . . . . . . . . 25 59 . . . 16 . . . Retrieved Matter 1229 | . . . . . . . . . . . . . . . . . . . 449 664 . . . 116 . . . Parts Self-Destructed 72 | . . . . . . . . . . 10 5 . 5 . 5 2 . 45 . . . . . . . . . Prevented 16 | . . . . . . . . . . 2 6 . . . 4 . . 4 . . . . . . . . . Kills | -11 -10 -10 -9 -9 -9 -8 -8 -8 -7 -7 -7 -7 -6 -6 -6 -6 -6 -5 -5 -5 -5 -5 -5 -4 -3 -2 -1 ------- Run | Scr Mat Min Mat Min Exi Min Mat Sto Fac Low Low Dat Pro Fac Low Low Zio Pro Fac Ext Cet Arc Hub Fac Res Res Acc Combat Hostiles Destroyed 187 | . 12 6 14 3 . 15 14 22 2 9 10 . . 3 7 . . 3 7 17 7 . 2 14 10 . 10 Melee 19 | . . . . . . . . . 2 . . . . 2 . . . . 3 2 . . . 8 2 . . Guns 44 | . 11 6 12 . . . . 2 . . . . . . . . . . . 2 2 . 2 4 3 . . Cannons 44 | . . . 2 3 . 3 8 11 . . . . . . . . . . 2 3 . . . . 3 . 9 AOE 67 | . 1 . . . . 12 6 9 . 8 10 . . 1 7 . . 3 2 5 3 . . . . . . Classes Destroyed 18 | 1 6 . 3 . . . 1 3 1 1 . . . . . . . . . 2 . . . . . . . Worker 17 | . . . 2 . . . 1 1 2 . . . . 4 . . . . 2 4 . . . . 1 . . Builder 5 | . . . . . . . . 1 . . . . . 1 . . . . 1 2 . . . . . . . Tunneler 2 | . 1 . . . . . . . . . . . . . . . . . . 1 . . . . . . . Hauler 18 | . 2 . 5 . . . 1 1 3 . . . . . . . . . . 5 . . . 1 . . . Recycler 14 | 1 1 . 1 . . . . 1 2 . . . . . . . . . . 5 . . . 2 1 . . Minesweeper 4 | . . . . . . . . . . 2 . . . . . . . 2 . . . . . . . . . Mechanic 1 | . . . . . . . . 1 . . . . . . . . . . . . . . . . . . . Operator 6 | . 2 . 2 . . . . 1 1 . . . . . . . . . . . . . . . . . . Watcher 11 | . 1 . . . . . 1 . 2 . . . . . . . . . 1 2 1 . . . 3 . . Swarmer 68 | . 6 6 . . . 12 4 . 1 4 8 . . 3 7 . . 3 3 7 4 . . . . . . Grunt 67 | . 6 . 9 3 . 2 7 17 . 4 1 . . . . . . . . 2 . . 2 5 3 . 6 Brawler 3 | . . . . . . . 2 . . . . . . . . . . . . . . . . . . . 1 Duelist 4 | . . . 1 . . 1 . 2 . . . . . . . . . . . . . . . . . . . Protector 1 | . . . . . . . . 1 . . . . . . . . . . . . . . . . . . . Sentry 13 | . . . 4 . . . 1 2 . . 1 . . . . . . . . 3 . . . . 1 . 1 Hunter 3 | . . . . . . . . . . . . . . . . . . . . 2 1 . . . . . . Programmer 23 | . . . . . . . . . 1 . . . . . . . . . 4 1 . . . 9 6 . 2 Behemoth 1 | . . . . . . . . . . . . . . . . . . . . 1 . . . . . . . Cetus Guard 2 | . . . . . . . . . . . . . . . . . . . . . 2 . . . . . . Thug 2 | . . . . . . . . 1 . . . . . . . . . . . 1 . . . . . . . Savage 1 | . . . . . . . . . . . . . . . . . . . . . 1 . . . . . . Butcher 3 | . . . . . . . . . . 1 . . . . . . . . . . 2 . . . . . . Best Kill Streak 13 | 1 4 3 4 3 . 8 5 13 3 4 4 . . 4 4 . . 3 4 5 4 . 2 3 3 . 5 Combat Bots Only 10 | . 3 3 3 3 . 8 5 10 1 4 4 . . 2 4 . . 3 4 3 4 . 2 3 3 . 5 Max Kills in Single Turn 6 | 1 2 2 2 1 . 3 2 6 1 3 2 . . 1 2 . . 2 2 2 3 . 1 1 1 . 2 Gunslinging 1 | . 1 1 . . . . . . . . . . . . . . . . . . . . . . . . . Exploded 4 | . 1 . . . . 3 1 4 . 3 2 . . 1 2 . . 2 2 1 2 . . . . . . Melee 1 | . . . . . . . . . 1 . . . . 1 . . . . 1 1 . . . 1 1 . . Uniques/NPCs Destroyed 1 | . . . . . . . . . . . . . . . . . . . . 1 . . . . . . . A7 (-5/Extension) Combat | -11 -10 -10 -9 -9 -9 -8 -8 -8 -7 -7 -7 -7 -6 -6 -6 -6 -6 -5 -5 -5 -5 -5 -5 -4 -3 -2 -1 -------- Run | Scr Mat Min Mat Min Exi Min Mat Sto Fac Low Low Dat Pro Fac Low Low Zio Pro Fac Ext Cet Arc Hub Fac Res Res Acc Damage Taken 18830 | . 469 369 771 32 . 332 723 940 80 63 244 . 22 421 180 17 . 352 1340 1941 672 738 1738 2671 3237 . 1478 Core 2669 | . 92 57 59 . . 112 33 47 . 37 88 . 22 145 34 . . 43 227 78 67 62 313 340 654 . 159 Absorbed by Shields 615 | . . . . . . . . . . . . . . . . . . 4 273 338 . . . . . . . Core Remaining (%) 69 | 100 . 40 . . . 57 . 85 . . . . 79 . . . . 73 . . . . 25 70 49 100 90 Volleys Fired 575 | 1 61 10 73 6 . 15 43 52 . 7 15 . . 3 6 1 . 5 23 88 11 . 16 20 67 . 52 Largest 2 | 2 2 2 2 2 . 2 2 2 . 1 1 . . 1 1 1 . 1 1 2 2 . 2 2 2 . 2 Hottest 181 | 90 90 40 76 91 . 136 136 136 . 36 36 . . 36 36 60 . 36 90 98 95 . 133 140 181 . 175 Shots Fired 830 | 2 112 22 146 12 . 22 76 98 . 7 15 . . 3 6 1 . 5 24 88 15 . 17 24 68 . 67 Gun 372 | 2 112 22 133 6 . . . 14 . . . . . . . . . . 8 10 6 . 8 23 28 . . Cannon 373 | . . . 13 6 . 14 67 78 . . . . . . . 1 . . 15 53 9 . 9 1 40 . 67 Launcher 85 | . . . . . . 8 9 6 . 7 15 . . 3 6 . . 5 1 25 . . . . . . . Special . | . . . . . . . . . . . . . . . . . . . . . . . . . . . . Kinetic 322 | . 86 22 133 6 . . . 14 . . . . . . . . . . . 10 6 . 8 9 28 . . Thermal 251 | 1 2 . . 6 . 14 66 68 . . . . . . . . . . 15 34 . . 9 . . . 36 Explosive 32 | . . . . . . 8 9 . . 3 . . . . . . . . . 12 . . . . . . . Electromagnetic 225 | 1 24 . 13 . . . 1 16 . 4 15 . . 3 6 1 . 5 9 32 9 . . 15 40 . 31 Robot Hit Streak 21 | 1 10 5 13 8 . 21 9 15 . 5 1 . . . . . . . 2 7 5 . 8 15 13 . 5 Robot Miss Streak 7 | 1 7 5 2 1 . 1 3 2 . . 3 . . . . . . . 2 4 1 . . 1 5 . 4 Penetration Max 1 | . . . . . . . . . . . . . . . . . . . . 1 . . . . . . . Secondary Targets 4 | . 2 2 . . . . . . . . . . . . . . . . . . . . . . . . . Max Gunslinging Chain 1 | . 1 1 . . . . . . . . . . . . . . . . . . . . . . . . . Shots Hit Robots 657 | 1 60 14 107 8 . 14 44 77 31 12 3 . . 13 2 2 2 3 33 66 6 . 7 58 68 . 26 Core Hits 438 | 2 29 6 42 4 . 20 31 47 12 13 12 . . 11 8 1 1 6 13 76 31 . 3 24 31 . 15 Critical Hits 35 | . . 1 2 1 . 1 7 6 . 1 . . . . . . . . 2 1 . . 2 8 2 . 1 Critical Kills 17 | . . 1 . . . 1 3 4 . . . . . . . . . . . 1 . . 2 3 1 . 1 Critical Parts Destroyed 17 | . . . 2 1 . . 4 2 . 1 . . . . . . . . 1 . . . . 5 1 . . Melee Attacks 399 | . . . . . . . . 2 57 13 6 . 10 48 5 4 2 3 52 47 . . 10 78 62 . . Impact . | . . . . . . . . . . . . . . . . . . . . . . . . . . . . Slashing 290 | . . . . . . . . 2 57 13 6 . 10 48 5 4 2 3 52 47 . . . . 41 . . Piercing 109 | . . . . . . . . . . . . . . . . . . . . . . . 10 78 21 . . Sneak Attacks 43 | . . . . . . . . . 12 2 . . . 4 . . . 1 2 14 . . . 6 2 . . Combat Hostiles . | . . . . . . . . . . . . . . . . . . . . . . . . . . . . Follow-up Attacks 1 | . . . . . . . . . . . . . . . . . . . . . . . . . 1 . . Damage Inflicted 29629 | 28 804 174 1677 185 . 980 2018 2886 1944 938 568 . . 964 464 278 208 450 1741 5664 1010 . 187 2477 2707 . 1277 Guns 4201 | 28 747 174 1432 64 . . . 168 . . . . . . . . . . 63 108 54 . 120 651 592 . . Cannons 5996 | . . . 245 121 . 268 869 1277 . . . . . . . . . . 420 490 54 . 67 . 928 . 1257 Explosions 9318 | . 57 . . . . 712 1149 1441 . 497 431 . . 246 302 . . 262 367 2698 902 . . . 254 . . Melee 10038 | . . . . . . . . . 1944 441 137 . . 718 162 278 208 188 891 2368 . . . 1826 877 . . Ramming 76 | . . . . . . . . . . . . . . . . . . . . . . . . . 56 . 20 Kinetic 3471 | . 546 174 1432 64 . . . 168 . . . . . . . . . . . 108 54 . 120 213 592 . . Thermal 4593 | 13 70 . . 121 . 268 868 1542 . . . . . . . . . . 420 501 . . 67 . 254 . 469 Explosive 3565 | . . . . . . 712 1125 . . 241 . . . 118 . . . . 323 1046 . . . . . . . Electromagnetic 7886 | 15 188 . 245 . . . 25 1176 . 256 431 . . 128 302 . . 262 107 1641 956 . . 438 928 . 788 Impact . | . . . . . . . . . . . . . . . . . . . . . . . . . . . . Slashing 7965 | . . . . . . . . . 1944 441 137 . . 718 162 278 208 188 891 2368 . . . . 630 . . Piercing 2073 | . . . . . . . . . . . . . . . . . . . . . . . . 1826 247 . . Highest Corruption 63 | . 6 6 1 1 1 1 5 5 . . 1 1 1 . . 1 1 . 5 39 54 54 63 13 42 . 3 Average Corruption 11 | . 5 6 1 1 1 1 5 5 . . 1 1 1 . . 1 1 . 3 20 51 54 54 8 25 . 2 Corruption Purged . | . . . . . . . . . . . . . . . . . . . . . . . . . . . . Effects 723 | . 29 13 6 5 4 9 21 35 . . 1 . . . . . . . 27 281 35 8 78 64 106 . 1 Message Errors 137 | . 8 2 2 1 2 5 4 9 . . . . . . . . . . 9 53 3 1 11 14 13 . . Matter Fused 97 | . 2 1 . . . . 2 5 . . . . . . . . . . 7 39 3 1 12 13 11 . 1 Heat Flow Errors 58 | . 7 . . . . . 3 2 . . . . . . . . . . 4 23 2 . 2 6 9 . . Energy Discharges 61 | . 4 3 2 2 . 2 2 8 . . 1 . . . . . . . 3 18 2 . 3 8 3 . . Parts Rejected 4 | . . . . . . . . . . . . . . . . . . . . . . 1 1 1 1 . . Data Loss (minor) 52 | . 2 2 1 2 2 2 1 2 . . . . . . . . . . 2 20 2 1 3 5 5 . . Data Loss (major) 17 | . 1 . . . . . 4 1 . . . . . . . . . . . 6 . 1 1 2 1 . . Misfires 16 | . 1 2 . . . . 2 2 . . . . . . . . . . 1 5 1 . . 1 1 . . Alerts 5 | . . . . . . . . . . . . . . . . . . . . 3 . 1 1 . . . . Misdirections 148 | . . . . . . . . . . . . . . . . . . . . 74 9 2 26 9 28 . . Targeting Errors 109 | . 4 3 1 . . . 1 4 . . . . . . . . . . 1 32 11 . 14 5 33 . . Weapon Failures 19 | . . . . . . . 2 2 . . . . . . . . . . . 8 2 . 4 . 1 . . Overload Shots . | . . . . . . . . . . . . . . . . . . . . . . . . . . . . Overflow Damage 2386 | . . . 18 . . 30 82 69 511 170 60 . . 136 146 120 55 6 145 555 . . 8 120 124 . 31 Projectiles 164 | . . . 18 . . . . 57 . . . . . . . . . . 41 . . . 8 . 9 . 31 Explosions 454 | . . . . . . 30 82 12 . . 11 . . 11 . . . 5 2 188 . . . . 113 . . Melee 1768 | . . . . . . . . . 511 170 49 . . 125 146 120 55 1 102 367 . . . 120 2 . . Knockbacks . | . . . . . . . . . . . . . . . . . . . . . . . . . . . . Impact . | . . . . . . . . . . . . . . . . . . . . . . . . . . . . Kinetic . | . . . . . . . . . . . . . . . . . . . . . . . . . . . . Secondary . | . . . . . . . . . . . . . . . . . . . . . . . . . . . . Self-Inflicted Damage 708 | . . . . . . 65 . 93 . . 47 . . . . . . . 79 128 136 . . . 150 . 10 Shots 18 | . . . . . . 3 . 4 . . 2 . . . . . . . 1 5 2 . . . 1 . . Rammed 1 | . . . . . . . . . . . . . . . . . . . . . . . . . . . 1 Targets Rammed 1 | . . . . . . . . . . . . . . . . . . . . . . . . . . . 1 Kicked . | . . . . . . . . . . . . . . . . . . . . . . . . . . . . Crushed . | . . . . . . . . . . . . . . . . . . . . . . . . . . . . Highest Temperature 550 | 30 247 . 87 100 . 194 358 174 21 21 64 3 3 13 12 56 106 3 469 476 139 . 237 550 313 324 201 Average Temperature 77 | 17 71 . 23 47 . 99 71 24 5 2 6 1 1 1 7 20 26 2 160 86 34 . 93 104 116 159 51 Received Heat Transfer 2072 | . 138 . 249 18 . 117 324 369 18 9 . . . 6 18 . . 30 24 161 54 27 45 219 102 . 144 Effects 18 | . . . . . . . . . . . . . . . . . . . 10 3 . . . 5 . . . Shutdowns 7 | . . . . . . . . . . . . . . . . . . . 3 2 . . . 2 . . . Energy Bleed 2 | . . . . . . . . . . . . . . . . . . . . . . . . 2 . . . Interference 5 | . . . . . . . . . . . . . . . . . . . 3 1 . . . 1 . . . Damage (major) 4 | . . . . . . . . . . . . . . . . . . . 4 . . . . . . . . Siege Activations . | . . . . . . . . . . . . . . . . . . . . . . . . . . . . Robots Corrupted 18 | . . . . . . . . 1 . 1 . . . . . . . . 1 6 3 . . 2 3 . 1 Combat Hostiles 13 | . . . . . . . . . . 1 . . . . . . . . . 5 2 . . 2 2 . 1 Parts Fried 55 | . 1 . 2 . . . . 12 . 2 1 . . 1 1 . . 2 . 10 6 . . 5 9 . 3 Impact Corruptions . | . . . . . . . . . . . . . . . . . . . . . . . . . . . . Robots Melted . | . . . . . . . . . . . . . . . . . . . . . . . . . . . . Combat Hostiles . | . . . . . . . . . . . . . . . . . . . . . . . . . . . . Parts Melted 14 | . . . . . . 1 5 3 . . . . . . . . . . . 1 . . . . . . 4 Heat Transferred 6243 | 37 87 . . 222 . 481 1567 2329 . . . . . . . . . . 225 675 . . 100 . 150 . 370 Parts Sabotaged . | . . . . . . . . . . . . . . . . . . . . . . . . . . . . Parts Stolen . | . . . . . . . . . . . . . . . . . . . . . . . . . . . . Parts Stripped . | . . . . . . . . . . . . . . . . . . . . . . . . . . . . Power Chain Reactions 13 | . 1 . . . . . 1 4 . . 1 . . 1 1 . . . . 1 1 . . . 2 . . Missiles Intercepted . | . . . . . . . . . . . . . . . . . . . . . . . . . . . . Latent Energy Used 1803 | . . . . . . . . . . . . . . . . 62 . . . 1118 623 . . . . . . LE Corruption 41 | . . . . . . . . . . . . . . . . 1 . . . 26 14 . . . . . . Alert | -11 -10 -10 -9 -9 -9 -8 -8 -8 -7 -7 -7 -7 -6 -6 -6 -6 -6 -5 -5 -5 -5 -5 -5 -4 -3 -2 -1 ------- Run | Scr Mat Min Mat Min Exi Min Mat Sto Fac Low Low Dat Pro Fac Low Low Zio Pro Fac Ext Cet Arc Hub Fac Res Res Acc Peak Influence 481 | 5 294 192 294 88 . 212 302 430 269 . . . . 317 . . . . 305 403 481 292 245 172 347 115 218 Initial 222 | . 3 37 70 88 . . 22 127 195 . . . . 18 . . . . 58 149 222 192 102 36 73 45 68 Average 130 | 3 120 145 158 69 . 99 148 111 121 . . . . 125 . . . . 78 179 411 219 132 83 142 74 125 Maximum Alert Level 2 | . 1 . 1 . . 1 1 2 1 . . . . 1 . . . . 1 2 2 1 1 . 1 . 1 Low Security (%) 77 | 100 86 100 69 100 . 77 64 75 73 . . . . 71 . . . . 89 59 . 49 92 100 70 100 87 Level 1 21 | . 13 . 30 . . 22 35 20 26 . . . . 28 . . . . 10 37 27 50 7 . 29 . 12 Level 2 1 | . . . . . . . . 4 . . . . . . . . . . . 2 72 . . . . . . Level 3 . | . . . . . . . . . . . . . . . . . . . . . . . . . . . . Level 4 . | . . . . . . . . . . . . . . . . . . . . . . . . . . . . Level 5 . | . . . . . . . . . . . . . . . . . . . . . . . . . . . . High Security . | . . . . . . . . . . . . . . . . . . . . . . . . . . . . Max Security . | . . . . . . . . . . . . . . . . . . . . . . . . . . . . Squads Dispatched 46 | . 4 . 3 . . . 1 5 3 . . . . 5 . . . 1 5 2 . . 1 9 5 1 1 Investigation 9 | . 2 . 1 . . . 1 1 . . . . . 2 . . . . 1 . . . 1 . . . . Extermination 14 | . . . . . . . . . 2 . . . . 1 . . . . 3 . . . . 4 2 1 1 Reinforcement 15 | . 2 . 2 . . . . 2 1 . . . . 1 . . . . 1 2 . . . 1 3 . . Assault 4 | . . . . . . . . 2 . . . . . 1 . . . 1 . . . . . . . . . Garrison 4 | . . . . . . . . . . . . . . . . . . . . . . . . 4 . . . Intercept . | . . . . . . . . . . . . . . . . . . . . . . . . . . . . Construction Impeded 3 | . . . . . . . . . . . . . . . . . . . . 2 . . . . 1 . . Haulers Reinforced 3 | . . . . . . . . . 1 . . . . . . . . . 1 . . . . 1 . . . Stealth | -11 -10 -10 -9 -9 -9 -8 -8 -8 -7 -7 -7 -7 -6 -6 -6 -6 -6 -5 -5 -5 -5 -5 -5 -4 -3 -2 -1 --------- Run | Scr Mat Min Mat Min Exi Min Mat Sto Fac Low Low Dat Pro Fac Low Low Zio Pro Fac Ext Cet Arc Hub Fac Res Res Acc Distress Signals 26 | . . . 1 . . . 2 . . . . . . . . . . 1 3 6 1 . 2 5 4 . 1 Communications Jammed 12 | . . . . . . . . 12 . . . . . . . . . . . . . . . . . . . Distress Signals 12 | . . . . . . . . 12 . . . . . . . . . . . . . . . . . . . Times Spotted 456 | . 25 12 27 3 . 12 34 36 19 12 7 . 1 11 10 1 . 34 28 41 8 12 20 38 39 3 23 Peak Tracking Total 12 | . 4 6 6 2 . 4 5 10 3 4 4 . 1 4 5 1 . 8 7 3 5 6 12 8 8 2 9 Tactical Retreats 82 | . . . 3 . . . 6 3 5 3 1 . . 4 1 1 . 11 8 14 2 3 3 5 6 . 3 Traps | -11 -10 -10 -9 -9 -9 -8 -8 -8 -7 -7 -7 -7 -6 -6 -6 -6 -6 -5 -5 -5 -5 -5 -5 -4 -3 -2 -1 ------- Run | Scr Mat Min Mat Min Exi Min Mat Sto Fac Low Low Dat Pro Fac Low Low Zio Pro Fac Ext Cet Arc Hub Fac Res Res Acc Traps Triggered 27 | . 4 . 1 . . . 2 2 1 . . . . 2 . . . 1 . 8 . . 1 1 2 2 . Indirectly 2 | . . . . . . . . . . . . . . . . . . 1 . 1 . . . . . . . Trap Hack Attempts 7 | . 7 . . . . . . . . . . . . . . . . . . . . . . . . . . Triggered . | . . . . . . . . . . . . . . . . . . . . . . . . . . . . Disarmed . | . . . . . . . . . . . . . . . . . . . . . . . . . . . . Reprogrammed 21 | . 1 . . . . . . . 10 . . . . 10 . . . . . . . . . . . . . Reused 33 | . . . . . . . . . 2 3 . . . 1 . . . 12 4 10 . . . 1 . . . Traps Extracted . | . . . . . . . . . . . . . . . . . . . . . . . . . . . . Installed 117 | . . . . . . . . . . 13 1 . . . . . . 44 5 50 . . 2 2 . . . Triggered 33 | . . . . . . . . . 2 . . . . 1 . 2 . 13 4 10 . . . 1 . . . Fabricated Traps 93 | . . . . . . . . . . . . . . . . . . 29 8 53 . . . 3 . . . Machines | -11 -10 -10 -9 -9 -9 -8 -8 -8 -7 -7 -7 -7 -6 -6 -6 -6 -6 -5 -5 -5 -5 -5 -5 -4 -3 -2 -1 ---------- Run | Scr Mat Min Mat Min Exi Min Mat Sto Fac Low Low Dat Pro Fac Low Low Zio Pro Fac Ext Cet Arc Hub Fac Res Res Acc Machines Disabled 23 | . . . 1 . . . 1 4 . . . . . 8 . . . 1 1 . 5 . . 1 . . 1 Max in Single Turn 3 | . . . 1 . . . 1 2 . . . . . 3 . . . 1 1 . 2 . . 1 . . 1 Garrison Access 6 | . . . . . . . . . 3 . . . . 1 . . . . . . . . . . 1 1 . Network Hub 1 | . . . . . . . . . . . . . . . . . . . . . . . 1 . . . . Energy Cycler 1 | . . . . . . . . . . . . . . . . . . . . . . . . . . . 1 Machines Sabotaged . | . . . . . . . . . . . . . . . . . . . . . . . . . . . . Garrisons Compromised . | . . . . . . . . . . . . . . . . . . . . . . . . . . . . Overloaded Fab Kills . | . . . . . . . . . . . . . . . . . . . . . . . . . . . . Fab Network Shutdowns . | . . . . . . . . . . . . . . . . . . . . . . . . . . . . Hacking | -11 -10 -10 -9 -9 -9 -8 -8 -8 -7 -7 -7 -7 -6 -6 -6 -6 -6 -5 -5 -5 -5 -5 -5 -4 -3 -2 -1 --------- Run | Scr Mat Min Mat Min Exi Min Mat Sto Fac Low Low Dat Pro Fac Low Low Zio Pro Fac Ext Cet Arc Hub Fac Res Res Acc Machines Accessed 101 | . 7 . 5 . 2 . 5 6 18 . 1 4 . 13 . . 1 . 10 1 1 . 3 7 11 3 3 Terminals 57 | . 6 . 3 . . . 2 4 10 . . . . 8 . . . . 5 1 1 . 3 4 7 . 3 Fabricators 11 | . . . . . . . . . 3 . . . . 2 . . . . 3 . . . . . 2 1 . Repair Stations 14 | . 1 . 1 . . . 2 2 2 . . . . 2 . . . . 1 . . . . 1 1 1 . Recycling Units 2 | . . . . . . . . . . . . . . . . . . . 1 . . . . 1 . . . Scanalyzers 2 | . . . 1 . . . . . . . . . . 1 . . . . . . . . . . . . . Garrison Access 7 | . . . . . . . 1 . 3 . . . . . . . . . . . . . . 1 1 1 . Total Hacks 374 | . 30 . 12 . 2 . 12 17 70 . 1 27 . 46 . . 4 . 35 1 1 . 7 30 49 6 24 Successful 219 | . 13 . 5 . 2 . 10 12 45 . 1 27 . 32 . . 4 . 25 . 1 . 3 11 18 4 6 Failed 154 | . 17 . 7 . . . 2 5 24 . . . . 14 . . . . 10 1 . . 4 19 31 2 18 Catastrophic 24 | . 1 . 1 . . . . 1 2 . . . . 1 . . . . . 1 . . 2 3 5 . 7 Database Lockouts 1 | . . . . . . . . . 1 . . . . . . . . . . . . . . . . . . Manual 114 | . 6 . 1 . 1 . . 6 34 . . . . 19 . . . . 16 . . . 2 5 15 . 9 Terminals 223 | . 26 . 8 . . . 4 12 49 . . . . 21 . . . . 20 1 1 . 7 16 34 . 24 Fabricators 43 | . . . . . . . . . 12 . . . . 8 . . . . 11 . . . . . 11 1 . Repair Stations 45 | . 4 . 2 . . . 7 5 5 . . . . 7 . . . . 2 . . . . 6 3 4 . Recycling Units 5 | . . . . . . . . . . . . . . . . . . . 2 . . . . 3 . . . Scanalyzers 12 | . . . 2 . . . . . . . . . . 10 . . . . . . . . . . . . . Garrison Access 12 | . . . . . . . 1 . 4 . . . . . . . . . . . . . . 5 1 1 . Terminal Hacks 109 | . 6 . 1 . 2 . 3 6 19 . 1 27 . 9 . . 4 . 9 . 1 . 3 5 8 . 5 Record 13 | . 1 . . . 1 . . . . . . 11 . . . . . . . . . . . . . . . Part Schematic 14 | . . . . . . . . . 3 . . 7 . . . . 4 . . . . . . . . . . Robot Schematic 6 | . . . . . . . . . . . . 6 . . . . . . . . . . . . . . . Prototype ID Bank 4 | . . . . . . . . . 1 . . 3 . . . . . . . . . . . . . . . Open Door 4 | . . . . . . . . 1 . . 1 . . . . . . . 1 . 1 . . . . . . Level Access Points 1 | . . . . . . . . . . . . . . . . . . . . . . . . . . . 1 Branch Access Points 5 | . . . . . . . 1 . 1 . . . . 1 . . . . 1 . . . . 1 . . . Emergency Access Points 3 | . . . . . . . . . . . . . . . . . . . . . . . . 1 1 . 1 Machine Index 1 | . . . . . . . . . 1 . . . . . . . . . . . . . . . . . . Terminal Index 7 | . . . . . . . . 1 1 . . . . 1 . . . . 1 . . . 1 . 1 . 1 Fabricator Index 3 | . . . . . . . . . 1 . . . . 1 . . . . 1 . . . . . . . . Alert Level 3 | . . . . . . . . . 1 . . . . . . . . . . . . . . 1 . . 1 Unreport Threat 12 | . . . . . . . . 1 3 . . . . 2 . . . . 2 . . . . . 3 . 1 Locate Traps 9 | . 1 . . . . . 1 2 1 . . . . 1 . . . . . . . . 2 1 . . . Reprogram Traps 5 | . . . . . . . . . 3 . . . . 2 . . . . . . . . . . . . . Dispatch Records 1 | . . . . . . . . . . . . . . . . . . . . . . . . . 1 . . Recall Extermination 2 | . . . . . . . . . 1 . . . . 1 . . . . . . . . . . . . . Recall Reinforcements 1 | . 1 . . . . . . . . . . . . . . . . . . . . . . . . . . Hauler Manifests 2 | . . . 1 . . . 1 . . . . . . . . . . . . . . . . . . . . Registered Components 1 | . 1 . . . . . . . . . . . . . . . . . . . . . . . . . . Registered Prototypes 1 | . . . . . . . . . 1 . . . . . . . . . . . . . . . . . . Zone Layout 10 | . 2 . . . . . . 1 1 . . . . . . . . . 3 . . . . 1 2 . . EX-Prototype ID Bank 1 | . . . . . 1 . . . . . . . . . . . . . . . . . . . . . . Fabricator Hacks 23 | . . . . . . . . . 5 . . . . 4 . . . . 6 . . . . . 7 1 . Load Schematic 9 | . . . . . . . . . 2 . . . . 2 . . . . 3 . . . . . 2 . . Build 14 | . . . . . . . . . 3 . . . . 2 . . . . 3 . . . . . 5 1 . Repair Station Hacks 35 | . 4 . 1 . . . 7 4 3 . . . . 7 . . . . 2 . . . . 3 2 2 . Scan Component 18 | . 2 . 1 . . . 4 2 2 . . . . 3 . . . . 1 . . . . 1 1 1 . Repair 15 | . 2 . . . . . 3 2 1 . . . . 3 . . . . 1 . . . . 1 1 1 . Refit 2 | . . . . . . . . . . . . . . 1 . . . . . . . . . 1 . . . Recycling Unit Hacks 3 | . . . . . . . . . . . . . . . . . . . 1 . . . . 2 . . . Process 1 | . . . . . . . . . . . . . . . . . . . . . . . . 1 . . . Retrieve Matter 2 | . . . . . . . . . . . . . . . . . . . 1 . . . . 1 . . . Scanalyzer 11 | . . . 2 . . . . . . . . . . 9 . . . . . . . . . . . . . Insert Component 6 | . . . 1 . . . . . . . . . . 5 . . . . . . . . . . . . . Analyze 5 | . . . 1 . . . . . . . . . . 4 . . . . . . . . . . . . . Garrison Access Hacks 5 | . . . . . . . . . 3 . . . . . . . . . . . . . . . 1 1 . Seal Access 5 | . . . . . . . . . 3 . . . . . . . . . . . . . . . 1 1 . Unauthorized Hacks 33 | . 3 . 1 . . . . 2 15 . . . . 3 . . . . 7 . . . . 1 . . 1 Terminals 25 | . 3 . 1 . . . . 2 10 . . . . 1 . . . . 6 . . . . 1 . . 1 Track 8 | . 1 . 1 . . . . . 4 . . . . 1 . . . . 1 . . . . . . . . Assimilate 5 | . . . . . . . . 1 1 . . . . . . . . . 2 . . . . 1 . . . Botnet 7 | . 1 . . . . . . 1 2 . . . . . . . . . 2 . . . . . . . 1 Disrupt 2 | . . . . . . . . . 2 . . . . . . . . . . . . . . . . . . Operators 3 | . 1 . . . . . . . 1 . . . . . . . . . 1 . . . . . . . . Fabricators 8 | . . . . . . . . . 5 . . . . 2 . . . . 1 . . . . . . . . Report 1 | . . . . . . . . . 1 . . . . . . . . . . . . . . . . . . Prioritize 3 | . . . . . . . . . 2 . . . . 1 . . . . . . . . . . . . . Siphon 4 | . . . . . . . . . 2 . . . . 1 . . . . 1 . . . . . . . . Repair Stations . | . . . . . . . . . . . . . . . . . . . . . . . . . . . . Recycling Units . | . . . . . . . . . . . . . . . . . . . . . . . . . . . . Scanalyzers . | . . . . . . . . . . . . . . . . . . . . . . . . . . . . Garrison Access . | . . . . . . . . . . . . . . . . . . . . . . . . . . . . Data Cores Recovered 1 | . . . . . . . . . 1 . . . . . . . . . . . . . . . . . . Used 1 | . . . . . . . . . 1 . . . . . . . . . . . . . . . . . . Hacking Detections 79 | . 7 . 5 . . . 5 5 13 . . . . 12 . . . . 8 1 1 . 3 6 8 2 3 Full Trace Events 8 | . 3 . 1 . . . . 1 . . . . . 2 . . . . 1 . . . . . . . . Feedback Events . | . . . . . . . . . . . . . . . . . . . . . . . . . . . . Feedback Blocked . | . . . . . . . . . . . . . . . . . . . . . . . . . . . . Robot Schematics Acquired 6 | . . . . . . . . . . . . 6 . . . . . . . . . . . . . . . Robots Built . | . . . . . . . . . . . . . . . . . . . . . . . . . . . . Matter . | . . . . . . . . . . . . . . . . . . . . . . . . . . . . Time . | . . . . . . . . . . . . . . . . . . . . . . . . . . . . Total Robot Build Rating . | . . . . . . . . . . . . . . . . . . . . . . . . . . . . Part Schematics Acquired 18 | . . . . . . . . . 3 . . 7 . 4 . . 4 . . . . . . . . . . Parts Built 13 | . . . . . . . . . 3 . . . . 1 . . . . 5 . . . . . 4 . . Matter 2408 | . . . . . . . . . 474 . . . . 238 . . . . 636 . . . . . 782 278 . Time 911 | . . . . . . . . . 141 . . . . 169 . . . . 275 . . . . . 187 139 . Total Part Build Rating 73 | . . . . . . . . . 15 . . . . 6 . . . . 30 . . . . . 22 . . Parts Repaired 15 | . 2 . . . . . 3 2 1 . . . . 3 . . . . 1 . . . . 1 1 1 . Time 600 | . 64 . . . . . 102 102 51 . . . . 123 . . . . 60 . . . . 54 31 13 . Parts Recycled . | . . . . . . . . . . . . . . . . . . . . . . . . . . . . Recycled Matter 7 | . . . . . . . . . . . . . . . . . . . . . . . . 7 . . . Retrieved Matter 7 | . . . . . . . . . . . . . . . . . . . . . . . . 7 . . . Retrieved Components . | . . . . . . . . . . . . . . . . . . . . . . . . . . . . Parts Scanalyzed 5 | . . . 1 . . . . . . . . . . 4 . . . . . . . . . . . . . Part Schematics Acquired 4 | . . . . . . . . . . . . . . 4 . . . . . . . . . . . . . Parts Damaged . | . . . . . . . . . . . . . . . . . . . . . . . . . . . . Bothacking | -11 -10 -10 -9 -9 -9 -8 -8 -8 -7 -7 -7 -7 -6 -6 -6 -6 -6 -5 -5 -5 -5 -5 -5 -4 -3 -2 -1 ------------ Run | Scr Mat Min Mat Min Exi Min Mat Sto Fac Low Low Dat Pro Fac Low Low Zio Pro Fac Ext Cet Arc Hub Fac Res Res Acc Used RIF Installer . | . . . . . . . . . . . . . . . . . . . . . . . . . . . . Robots Hacked . | . . . . . . . . . . . . . . . . . . . . . . . . . . . . Non-combat . | . . . . . . . . . . . . . . . . . . . . . . . . . . . . Combat . | . . . . . . . . . . . . . . . . . . . . . . . . . . . . Robot Hacks Applied . | . . . . . . . . . . . . . . . . . . . . . . . . . . . . Relay Couplers Released 3 | . . . . . . . . . . . . . . 3 . . . . . . . . . . . . . Machine Destruction 3 | . . . . . . . . . . . . . . 3 . . . . . . . . . . . . . Robots Rewired 12 | . . . . . . . . . . . . . . . . . . 1 . 11 . . . . . . . Allies Hacked . | . . . . . . . . . . . . . . . . . . . . . . . . . . . . Hacks Repelled . | . . . . . . . . . . . . . . . . . . . . . . . . . . . . Allies | -11 -10 -10 -9 -9 -9 -8 -8 -8 -7 -7 -7 -7 -6 -6 -6 -6 -6 -5 -5 -5 -5 -5 -5 -4 -3 -2 -1 -------- Run | Scr Mat Min Mat Min Exi Min Mat Sto Fac Low Low Dat Pro Fac Low Low Zio Pro Fac Ext Cet Arc Hub Fac Res Res Acc Total Allies 41 | . . . . . . . . 2 . . . . 1 3 . . 8 1 1 21 . . . 1 . 3 . Largest Group 9 | . . . . . . . . 2 . . . . 1 3 . . 8 8 1 9 8 1 . 1 1 3 3 Highest-Rated Group 242 | . . . . . . . . 62 . . . . 94 93 . . 211 211 10 242 215 20 . 26 26 138 138 Highest-Rated Ally 156 | . . . . . . . . 31 . . . . 94 31 . . 31 31 10 156 32 20 . 26 26 46 46 Total Orders . | . . . . . . . . . . . . . . . . . . . . . . . . . . . . Ally Attacks 194 | . . . . . . . . 6 . . . . 6 7 . . . 78 . 58 20 4 . . . . 15 Total Damage 4129 | . . . . . . . . 86 . . . . 306 80 . . . 1675 . 1073 487 81 . . . . 341 Kills 29 | . . . . . . . . 1 . . . . 1 . . . . 14 . 11 2 . . . . . . Allies Corrupted 2 | . . . . . . . . 1 . . . . . . . . . . . 1 . . . . . . . Allies Melted 1 | . . . . . . . . . . . . . . . . . . . . . . 1 . . . . . Intel | -11 -10 -10 -9 -9 -9 -8 -8 -8 -7 -7 -7 -7 -6 -6 -6 -6 -6 -5 -5 -5 -5 -5 -5 -4 -3 -2 -1 ------- Run | Scr Mat Min Mat Min Exi Min Mat Sto Fac Low Low Dat Pro Fac Low Low Zio Pro Fac Ext Cet Arc Hub Fac Res Res Acc Robot Analysis Total . | . . . . . . . . . . . . . . . . . . . . . . . . . . . . Derelict Logs Recovered 11 | . . . . 1 . . . . . 1 2 . 1 . 2 2 1 1 . . . . . . . . . Drone Launches 2 | . . . . . . . . . . . . . . . . . . . . . . . . 2 . . . Drone Recoveries . | . . . . . . . . . . . . . . . . . . . . . . . . . . . . Exploration | -11 -10 -10 -9 -9 -9 -8 -8 -8 -7 -7 -7 -7 -6 -6 -6 -6 -6 -5 -5 -5 -5 -5 -5 -4 -3 -2 -1 ------------- Run | Scr Mat Min Mat Min Exi Min Mat Sto Fac Low Low Dat Pro Fac Low Low Zio Pro Fac Ext Cet Arc Hub Fac Res Res Acc Turns Passed 25339 | 111 1476 320 1340 889 1154 1398 1163 1339 901 322 323 21 271 695 341 113 405 2057 1588 3988 265 106 741 1955 1280 335 442 Spaces Moved 22429 | 59 668 160 521 434 539 614 398 349 1881 795 880 77 659 1216 995 358 989 2045 1296 3626 143 59 392 1212 1370 305 389 Core 5 | 1 . . . . . . . . . . . . . . . . . . . 4 . . . . . . . Treads 4535 | 58 668 160 521 434 539 614 398 349 9 . . . . . . . . . 116 . 104 59 372 134 . . . Legs 587 | . . . . . . . . . . . . . . . . . . 4 . . . . . 335 248 . . Wheels 1182 | . . . . . . . . . . . . . . . . . . 784 398 . . . . . . . . Hover 7022 | . . . . . . . . . . . . . . . . . . . 782 3622 39 . 20 743 1122 305 389 Flight 9098 | . . . . . . . . . 1872 795 880 77 659 1216 995 358 989 1257 . . . . . . . . . Fastest Speed 26 | 50 160 180 180 200 180 220 180 180 26 27 27 27 27 26 26 26 26 26 62 58 58 160 108 46 42 55 55 Average Speed 79 | 158 176 180 197 200 208 220 195 184 26 27 27 27 27 26 28 26 26 54 89 67 133 160 158 116 60 55 68 Slowest Speed 1800 | 160 180 220 260 200 220 220 200 200 180 99 27 27 27 30 29 26 26 180 210 1800 180 180 190 270 150 55 115 Overloaded Moves 15 | . . . . . . . . . . . . . . . . . . . . . . . . . 15 . . Propulsion Burnouts . | . . . . . . . . . . . . . . . . . . . . . . . . . . . . Robots Hopped 12 | . . . . . . . . . 6 . . . . 3 3 . . . . . . . . . . . . Cave-ins Triggered . | . . . . . . . . . . . . . . . . . . . . . . . . . . . . Exploration Rate (%) 56 | 4 92 45 56 97 78 73 26 60 42 79 84 69 66 37 90 53 80 93 25 84 65 78 27 23 33 12 17 Regions Visited 27 Branch Regions 17 Pre-discovered Areas 7 | . . . . 1 1 . . . . . 2 1 . . 1 . 1 . . . . . . . . . . Known Exits Taken 16 | . 1 1 . . . . 1 . 1 1 1 1 1 1 1 1 . 1 1 . . . 1 . 1 1 . Unknown Exits Taken 11 | 1 . . 1 1 1 1 . 1 . . . . . . . . 1 . . 1 1 1 . 1 . . . Scrap Searched 25 | . . 1 . 1 . 2 . . . 5 3 . 3 . 2 3 2 3 . . . . . . . . . Spaces Dug 204 | . . . . . . 21 18 2 19 2 4 . 10 32 5 . . . 15 1 . . 15 21 24 . 15 Terrain Destroyed 569 | . 2 . . . . 63 52 10 19 18 14 . 10 70 5 1 . . 59 117 26 . 20 21 34 . 28 Melee 140 | . . . . . . . . 2 19 2 4 . 10 32 3 . . . 15 . . . 8 21 24 . . Projectile 60 | . . . . . . . . . . . . . . . . . . . 5 19 . . 12 . . . 24 AOE 368 | . 2 . . . . 63 52 8 . 16 10 . . 38 2 1 . . 39 98 26 . . . 9 . 4 Terrain Rammed 1 | . . . . . . . . . . . . . . . . . . . . . . . . . 1 . . Walls Destroyed 1 | . . . . . . . . . . . . . . . . . . . . . . . . . 1 . . Machines Disabled . | . . . . . . . . . . . . . . . . . . . . . . . . . . . . Actions | -11 -10 -10 -9 -9 -9 -8 -8 -8 -7 -7 -7 -7 -6 -6 -6 -6 -6 -5 -5 -5 -5 -5 -5 -4 -3 -2 -1 --------- Run | Scr Mat Min Mat Min Exi Min Mat Sto Fac Low Low Dat Pro Fac Low Low Zio Pro Fac Ext Cet Arc Hub Fac Res Res Acc Total 28750 | 72 865 172 705 443 570 639 708 946 2194 868 934 76 736 1507 1034 369 1138 3016 1658 5103 207 72 487 1609 1656 472 494 Wait 3959 | . 72 . 22 . . 4 237 502 173 32 14 . 68 192 19 1 112 787 178 1020 17 8 41 206 82 146 26 Move 22379 | 58 667 159 520 433 538 613 397 348 1868 794 879 76 658 1209 990 357 988 2044 1295 3625 142 58 391 1211 1369 304 388 Hop 10 | . . . . . . . . . 6 . . . . 3 1 . . . . . . . . . . . . Pick Up 288 | 5 30 1 30 1 23 2 9 9 15 1 1 . . 15 1 . 9 27 29 31 4 1 3 12 12 9 8 Fast Attach 159 | 7 2 . . . 1 . 4 5 6 . 2 . . 5 . 1 8 12 13 19 8 . 2 36 25 2 1 Attach 155 | . 4 1 5 . . . 6 3 16 1 . . . 9 3 1 1 13 16 31 3 1 7 15 13 1 5 Detach 82 | 1 . . . . . . . . 6 . . . . 1 2 1 . 8 6 25 7 2 4 11 7 1 . Swap 163 | . 5 . 24 2 2 3 5 9 14 7 13 . . 7 6 2 1 4 6 22 4 . 1 4 10 4 8 Drop 389 | . 17 1 31 1 6 2 7 16 33 . 3 . . 15 1 1 17 65 35 83 11 2 9 14 10 4 5 Fire 575 | 1 61 10 73 6 . 15 43 52 . 7 15 . . 3 6 1 . 5 23 88 11 . 16 20 67 . 52 Melee 397 | . . . . . . . . 2 57 13 6 . 10 48 5 4 2 3 52 47 . . 10 78 60 . . Ram 3 | . . . . . . . . . . . . . . . . . . . . . . . 1 . 1 . 1 Kick . | . . . . . . . . . . . . . . . . . . . . . . . . . . . . Crush . | . . . . . . . . . . . . . . . . . . . . . . . . . . . . Escape Stasis 8 | . . . . . . . . . . . . . . . . . . . . 7 . . . . . 1 . Rewire 59 | . . . . . . . . . . . . . . . . . . 4 . 55 . . . . . . . Trap 124 | . 7 . . . . . . . . 13 1 . . . . . . 44 5 50 . . 2 2 . . . Miscellaneous . | . . . . . . . . . . . . . . . . . . . . . . . . . . . . Route ------- -11/Scrapyard -10/Materials (discovered 5 exits: *Mat x3 / *Min x2) -10/Mines -9/Materials (discovered 2 exits: *Mat / [*Min]) -9/Mines (discovered 3 exits: *Mat x2 / *Exi) -9/Exiles -8/Mines -8/Materials (discovered 2 exits: *Sto x2) -8/Storage -7/Factory (discovered 3 exits: *Fac / *Low x2) -7/Lower Caves -7/Lower Caves (discovered 2 exits: *Fac / *Dat) -7/Data Miner -6/Proximity Caves -6/Factory (discovered 3 exits: *Fac / *Low x2) -6/Lower Caves -6/Lower Caves (discovered 2 exits: *Fac / *Zio) -6/Zion -5/Proximity Caves -5/Factory (discovered 5 exits: *Fac / Upp x2 / *Ext x2) -5/Extension (discovered 2 exits: *Fac / *Cet) -5/Cetus -5/Archives (discovered 2 exits: *Hub x2) -5/Hub_04(d) (discovered 2 exits: *Fac x2) -4/Factory (discovered 4 exits: *Res / Upp x2 / Arm) -3/Research -2/Research -1/Access To Epsilon Eridani History --------- Turn | Location | Event 14 | -11/Scrapyard | Discovered new exit (range 15) 112 | -11/Scrapyard | Entered Materials 323 | -10/Materials | Build established: Mutant 393 | -10/Materials | Discovered new exit (range 8) 428 | -10/Materials | Identified exit to Mines 468 | -10/Materials | Discovered new exit (range 6) 475 | -10/Materials | Identified exit to Materials 606 | -10/Materials | Discovered exit to Materials (range 16) 773 | -10/Materials | Build established: Hauler-Mutant 1002 | -10/Materials | Repaired Hacking Suite 1029 | -10/Materials | Repaired Ion Engine 1035 | -10/Materials | Discovered exit to Mines (range 5) 1466 | -10/Materials | Discovered exit to Materials (range 10) 1588 | -10/Materials | Entered Mines 1593 | -10/Mines | Core integrity fell below 50% 1885 | -10/Mines | Discovered exit to Materials (range 12) 1908 | -10/Mines | Entered Materials 1908 | -9/Materials | Evolved 2 slots: Utility x2 2776 | -9/Materials | Discovered new exit (range 8) 3226 | -9/Materials | Discovered new exit (range 12) 3248 | -9/Materials | Entered Mines 3249 | -9/Mines | Learned location of Storage (-8) 3374 | -9/Mines | Deemed a non-threat by the Exiles lab entrance 3376 | -9/Mines | Discovered new exit (range 5) 3777 | -9/Mines | Learned 2 Materials zone layouts 3865 | -9/Mines | Discovered new exit (range 13) 3975 | -9/Mines | Discovered new exit (range 9) 4137 | -9/Mines | Entered Exiles 4196 | -9/Exiles | Met 8R-AWN 4224 | -9/Exiles | Met EX-HEX 4300 | -9/Exiles | Met EX-DEC 4363 | -9/Exiles | Visited The Gauntlet 4466 | -9/Exiles | Learned location of Zion (-6) 4949 | -9/Exiles | Met EX-BIN 5017 | -9/Exiles | Aligned with FarCom system 5019 | -9/Exiles | Given EX-Vault access code 5070 | -9/Exiles | Opened EX-Vault 5086 | -9/Exiles | Found Latent Energy Streamer 5133 | -9/Exiles | Warned to stay clear of 0b10 Research branches 5274 | -9/Exiles | Discovered new exit (range 10) 5291 | -9/Exiles | Left Exiles lab with Latent Energy Streamer 5291 | -9/Exiles | Entered Mines 5799 | -8/Mines | Destroyed 8 combat bots 6449 | -8/Mines | Discovered new exit (range 10) 6689 | -8/Mines | Entered Materials 6689 | -8/Materials | Evolved 2 slots: Propulsion x1, Utility x1 6705 | -8/Materials | Identified exit to Storage 6909 | -8/Materials | Repaired Adv. Sensor Array 6948 | -8/Materials | Repaired Hrd. Medium Armor Plating 7027 | -8/Materials | Repaired Lgt. Treads 7852 | -8/Materials | Entered Storage 8115 | -8/Storage | Repaired Adv. Beam Cannon 8692 | -8/Storage | Repaired Adv. Beam Cannon 9081 | -8/Storage | Met a pair of Derelict thieves 9164 | -8/Storage | Discovered new exit (range 16) 9169 | -8/Storage | Destroyed 10 combat bots 9191 | -8/Storage | Entered Factory 9191 | -7/Factory | Evolved 2 slots: Power x1, Propulsion x1 9460 | -7/Factory | Discovered new exit (range 16) 9526 | -7/Factory | Build established: Hacker-Sprinter 9659 | -7/Factory | Fabricated Imp. Hacking Suite? 9693 | -7/Factory | Repaired Imp. Flight Unit 9791 | -7/Factory | Fabricated Imp. Hacking Suite? 9826 | -7/Factory | Identified exit to Lower Caves 9891 | -7/Factory | Fabricated Imp. Hacking Suite? 9901 | -7/Factory | Central database locked down 10092 | -7/Factory | Entered Lower Caves 10253 | -7/Lower Caves | Ambushed by wild Derelicts 10323 | -7/Lower Caves | Encountered a Warlord checkpoint 10402 | -7/Lower Caves | Learned Factory emergency access door positions 10403 | -7/Lower Caves | Discovered new exit (range 15) 10413 | -7/Lower Caves | Identified exit to Lower Caves 10414 | -7/Lower Caves | Entered another Lower Caves area 10451 | -7/Lower Caves | Discovered new exit (range 9) 10506 | -7/Lower Caves | Identified exit to Factory 10603 | -7/Lower Caves | Attracted the attention of an 0b10 checkpoint 10679 | -7/Lower Caves | Learned location of Extension (-5) 10707 | -7/Lower Caves | Encountered a Warlord checkpoint 10713 | -7/Lower Caves | Discovered new exit (range 9) 10715 | -7/Lower Caves | Identified exit to Data Miner 10737 | -7/Lower Caves | Entered Data Miner 10737 | -7/Data Miner | Discovered new exit (range 6) 10743 | -7/Data Miner | Met Data Miner 10747 | -7/Data Miner | Learned location of Section 7 (-2) 10747 | -7/Data Miner | Acquired the access code to Warlord's prototype stash 10752 | -7/Data Miner | Received God Mode back door access code from Data Miner 10758 | -7/Data Miner | Identified exit to Proximity Caves 10758 | -7/Data Miner | Entered Proximity Caves 10858 | -6/Proximity Caves | Spotted B-75 Beast 10946 | -6/Proximity Caves | Escorted by Enhanced Grunt 11029 | -6/Proximity Caves | Entered Factory 11029 | -6/Factory | Evolved 2 slots: Utility x2 11075 | -6/Factory | Allied Derelicts emerged from ambush trap array 11247 | -6/Factory | Incoming investigation squad redirected 11278 | -6/Factory | Lost 6 parts (2p1n2u1w) 11366 | -6/Factory | Discovered new exit (range 16) 11370 | -6/Factory | Identified exit to Factory 11516 | -6/Factory | Identified exit to Lower Caves 11585 | -6/Factory | Repaired Imp. Flight Unit 11637 | -6/Factory | Repaired Lgt. Nuclear Core 11674 | -6/Factory | Fabricated Exp. Cesium-ion Thruster? 11700 | -6/Factory | Repaired Adv. EMP Blaster 11724 | -6/Factory | Entered Lower Caves 11727 | -6/Lower Caves | Encountered a Warlord checkpoint 11919 | -6/Lower Caves | Spotted B-75 Beast 11986 | -6/Lower Caves | Attracted the attention of an 0b10 checkpoint 11987 | -6/Lower Caves | Learned Factory garrison access intel 12058 | -6/Lower Caves | Discovered new exit (range 15) 12064 | -6/Lower Caves | Identified exit to Lower Caves 12065 | -6/Lower Caves | Entered another Lower Caves area 12073 | -6/Lower Caves | Discovered exit to Factory (range 10) 12087 | -6/Lower Caves | Learned 4 Factory zone layouts 12110 | -6/Lower Caves | Learned 8 Factory zone layouts 12136 | -6/Lower Caves | Discovered new exit (range 14) 12140 | -6/Lower Caves | Identified exit to Zion 12143 | -6/Lower Caves | Encountered a Warlord checkpoint 12178 | -6/Lower Caves | Entered Zion 12192 | -6/Zion | Given the Hacking Drone Bay 12192 | -6/Zion | Found Prototype Device 12198 | -6/Zion | Discovered new exit (range 10) 12209 | -6/Zion | Found Prototype Device 12209 | -6/Zion | Identified Bomb Factory No. 2 12236 | -6/Zion | System corruption cleaned by Quarantine Array 12242 | -6/Zion | Learned location of Armory (-4) 12248 | -6/Zion | Gained Derelict followers 12267 | -6/Zion | Gained Derelict followers 12307 | -6/Zion | Visited the Megawrench Repair Shop 12307 | -6/Zion | Megawrench repaired 11 parts 12327 | -6/Zion | Given A8's code to call for help 12360 | -6/Zion | Received a hallucinogenic algorithm 12367 | -6/Zion | Learned Factory trap positions 12583 | -6/Zion | Entered Proximity Caves 12583 | -5/Proximity Caves | Accompanied by 8 allies 13294 | -5/Proximity Caves | Attracted the attention of an 0b10 outpost 13884 | -5/Proximity Caves | Build established: Hacker-Mutant 14419 | -5/Proximity Caves | Spotted B-75 Beast 14512 | -5/Proximity Caves | Discovered exit to Factory (range 14) 14640 | -5/Proximity Caves | Entered Factory 14640 | -5/Factory | Evolved 2 slots: Propulsion x1, Utility x1 14641 | -5/Factory | Identified exit to Upper Caves 14641 | -5/Factory | Identified exit to Factory 14642 | -5/Factory | Loaded intel: 111 trap records 14643 | -5/Factory | Loaded intel: 4 garrison access locations 14683 | -5/Factory | Build established: Derelict-Mutant 14776 | -5/Factory | Repaired Adv. EMP Blaster? 15059 | -5/Factory | Build established: Hacker-Mutant 15286 | -5/Factory | Discovered new exit (range 10) 15339 | -5/Factory | Identified exit to Extension 15493 | -5/Factory | Fabricated Cmb. Gravmag System (x2) 15554 | -5/Factory | Fabricated Cmb. Gravmag System (x2) 15846 | -5/Factory | Incoming investigation squad redirected 15985 | -5/Factory | Build established: Machinist-Mutant 16005 | -5/Factory | Fabricated Combat Drone Bay? 16228 | -5/Factory | Entered Extension 16573 | -5/Extension | Rescued a captive Derelict 16574 | -5/Extension | Rescued a captive Derelict 16611 | -5/Extension | Rescued a captive Derelict 16617 | -5/Extension | Rescued a captive Derelict 16828 | -5/Extension | Disrupted transfer network 16915 | -5/Extension | Rescued A7 16953 | -5/Extension | Rescued a captive Derelict 17275 | -5/Extension | Destroyed A7 17278 | -5/Extension | Extracted ID and sensor layout for unrecognized location from A7's data core 17588 | -5/Extension | System corruption reached 10% 17762 | -5/Extension | Spotted B-75 Beast 18334 | -5/Extension | Build established: Scavenger-Mutant 18902 | -5/Extension | System corruption reached 30% 18967 | -5/Extension | Destroyed B-75 Beast 19415 | -5/Extension | Spotted B-75 Beast 19739 | -5/Extension | Rescued a captive Derelict 20139 | -5/Extension | Rescued a captive Derelict 20140 | -5/Extension | Rescued a captive Derelict 20150 | -5/Extension | Rescued a captive Derelict 20168 | -5/Extension | Discovered exit to Factory (range 10) 20171 | -5/Extension | Discovered new exit (range 6) 20216 | -5/Extension | Entered Cetus 20216 | -5/Cetus | Accompanied by 8 allies 20232 | -5/Cetus | Spotted Cetus Guard 20232 | -5/Cetus | Spotted Cetus Guard 20238 | -5/Cetus | Spotted Cetus Guard 20242 | -5/Cetus | Spotted Cetus Guard 20244 | -5/Cetus | Destroyed Cetus Guard 20244 | -5/Cetus | Destroyed Cetus Guard 20254 | -5/Cetus | Allies destroyed Cetus Guard 20264 | -5/Cetus | Allies destroyed Cetus Guard 20284 | -5/Cetus | Lost 3 parts (1p1n1w) 20289 | -5/Cetus | Cetus Manufacturing Module disabled 20444 | -5/Cetus | Discovered new exit (range 16) 20481 | -5/Cetus | Entered Archives 20481 | -5/Archives | Accompanied by 1 ally 20504 | -5/Archives | Met Zhirov 20510 | -5/Archives | Reinforcements dispatched to Archives 20525 | -5/Archives | Discovered new exit (range 16) 20539 | -5/Archives | Discovered new exit (range 14) 20555 | -5/Archives | Reinforcements dispatched to Archives 20556 | -5/Archives | Zhirov warped through subspace 20574 | -5/Archives | Zhirov detonated Archives 20587 | -5/Archives | Entered Hub_04(d) 20607 | -5/Hub_04(d) | Spotted B-75 Beast 20761 | -5/Hub_04(d) | Discovered exit to Factory (range 13) 20966 | -5/Hub_04(d) | Discovered exit to Factory (range 15) 21279 | -5/Hub_04(d) | Network Hub disabled 21302 | -5/Hub_04(d) | Spotted Lightning 21305 | -5/Hub_04(d) | Spotted Lightning 21306 | -5/Hub_04(d) | Spotted Lightning 21306 | -5/Hub_04(d) | Spotted Lightning 21306 | -5/Hub_04(d) | Spotted Lightning 21306 | -5/Hub_04(d) | Spotted Lightning 21313 | -5/Hub_04(d) | Core integrity fell below 50% 21316 | -5/Hub_04(d) | Spotted Lightning 21316 | -5/Hub_04(d) | Spotted Lightning 21328 | -5/Hub_04(d) | Entered Factory 21328 | -4/Factory | Evolved 2 slots: Utility x2 21329 | -4/Factory | Identified exit to Armory 21351 | -4/Factory | Lost 8 parts (2p2n4u) 21490 | -4/Factory | Repaired Centrium Heavy Treads 21597 | -4/Factory | Build established: Mutant 21694 | -4/Factory | Garrison activated, responded to threat 21936 | -4/Factory | Build established: Scavenger-Mutant 21952 | -4/Factory | Identified exit to Upper Caves 22067 | -4/Factory | Garrison activated, responded to threat 22133 | -4/Factory | Spotted B-86 Titan 22202 | -4/Factory | Lost 3 parts (1p1n1u) 22637 | -4/Factory | System corruption reached 10% 22810 | -4/Factory | Lost 8 parts (4n3u1w) 23193 | -4/Factory | Discovered new exit (range 16) 23283 | -4/Factory | Entered Research 23283 | -3/Research | Accompanied by 1 ally 23283 | -3/Research | Evolved 2 slots: Utility x2 23369 | -3/Research | Found Prototype Processor 23369 | -3/Research | Identified Spectral Analyzer 23674 | -3/Research | System corruption reached 10% 23733 | -3/Research | Lost 10 parts (2p4n3u1w) 23890 | -3/Research | Fabricated Lgt. Regenerative Plating? 23972 | -3/Research | Repaired Imp. Antigrav System? 24005 | -3/Research | Found Unknown Device 24005 | -3/Research | Identified Antimissile System 24037 | -3/Research | Fabricated Lgt. Regenerative Plating? 24082 | -3/Research | Fabricated Cmb. Gravmag System? 24205 | -3/Research | Build established: Hacker-Mutant 24348 | -3/Research | System corruption reached 30% 24444 | -3/Research | Lost 7 parts (1p1n2u3w) 24541 | -3/Research | Discovered new exit (range 16) 24550 | -3/Research | Core integrity fell below 50% 24562 | -3/Research | Identified exit to Research 24563 | -3/Research | Entered another Research area 24563 | -2/Research | Evolved 2 slots: Utility x2 24585 | -2/Research | Repaired Lrg. Storage Unit 24865 | -2/Research | Allied Derelicts emerged from ambush trap array 24866 | -2/Research | Discovered new exit (range 5) 24867 | -2/Research | Identified exit to Access 24898 | -2/Research | Entered Access 24898 | -1/Access | Accompanied by 3 allies 24898 | -1/Access | Evolved 2 slots: Utility x1, Weapon x1 24910 | -1/Access | Identified exit to Surface 25081 | -1/Access | Energy Cycler disabled 25340 | *** | Escaped! Last Messages --------------- 25308_ Slug penetrates Wall. 25309_ Acquired 61 matter. 25313_ U-05 Engineer builds a Wall. 25316_ R-10 Processor collects Myomer Leg. 25317_ Destroyed Com. Wheel. 25324_ Y-72 Warden system terminally corrupted. 25324_ K-01 Serf collects debris. 25328_ W-44 Eye sends out distress signal. 25329_ Phase Gun fried. 25329_ G-73 Enforcer destroyed. 25329_ G-73 Enforcer suffers critical hit. 25329_ G-73 Enforcer destroyed. 25331_ K-01 Serf collects debris. 25332_ Slammed into G-73 Enforcer. 25332_ C-30 ARC bursts open, deploying its payload. 25332_ S-43 Plague unfolds itself. 25334_ K-01 Serf collects debris. 25336_ Adv. Heat Sink destroyed. 25336_ R-10 Processor collects Unknown Treads. 25337_ The Access Shell folds into the floor. Map ----- +----------------------------------------------------+ | ?????????????????????????????????????????????????? | | ?????????????????????????????????????????????????? | | ?????????????????????????????????????????????????? | | ?????????????????????????????????????????????????? | | ?????????????????????????????????????????????????? | | ?????????????????????????????????????????????????? | | ?????????????????????????????????????????????????? | | ?????????????????????????????????????????????????? | | ?????????????????????????????????????????????????? | | ?????????????????????????????????????????????????? | | ?????????????????????????????????????????????????? | | ?????????????????????????????????????????????????? | | ?????????????????????????????????????????????????? | | ?????????????????????????????????????????????????? | | ?????????????????????????????????????????????????? | | ?????????????????????????????????????????????????? | | ??????????# ?????????????????????????????????????? | | ??????????# ?????????????????????????????????????? | | ??????????# ??????###???????????????????????????? | | ??????????# ####### ##########??????????????????? | | ??????????# """T""" "??????????????????? | | ??????????# """ """ "????BB????????????? | | ??????????# "????BB????????????? | | ???? ????# "??????????????????? | | ??? ?????# "" "??????????????????? | | ??"""?????# @" "??????????????????? | | ? ""??????# "??????????????????? | | ????????# "????BB????????????? | | ?????????# "????BB????????????? | | ??????????# "??????????????????? | | ??????????# #####;#s##########??????????????????? | | ??????????#??????##s##???????????????????????????? | | ?????????????#####s#"##??????????????????????????? | | ?????????????# g######################?????? | | ?????????????# s %/![g!=!%*%* +?????? | | ??????????+ "/% ########![ #?????? | | ??????????# # w#??????# #?????? | | ?????????????# #??????# #??? | | ??????????# + w #??????# ########+##+#??? | | ??????????# # ######## #??????????????? | | ??????????# # !! + #??????????????? | | ??????????# # !! w ######### #??????????????? | | ########### #######+##???????# #??????????????? | | #?????# #????????# #??????????????? | | ! #?????# #??????### ###????????????? | | !!= #?????# #??????# #????????????? | | ####?# #??????# ###########??? | | %*! %! "#?# ######## | | !% ##?# | | ! #??# ##### ##! # | +----------------------------------------------------+ Best States ------------- Heat Dissipation 90 Coolant Potential 80 Energy Generation 43 Energy Capacity 1025 Matter Stores 300 Matter Capacity 300 Sight Range 24 Robot Scan Range 13 Terrain Scan Range 18 Terrain Scan Density 110 Jamming Range 16 Cloak Strength 2 Additional Mass Support 9 Base Temperature (-) 200 Corruption Prevention 12 Armor Coverage 450 Propulsion Shielding 66 Weapon Cycling 20 Phase Shifting 5 Evasion (%) 64 Targeting Accuracy 6 Melee Accuracy 5 Target Analysis 8 Armor Integrity Analysis 50 Recoil Reduction 4 Offensive Hacking 47 Defensive Hacking 24 Item Schematics ----------------- Imp. Hacking Suite | -7/Factory | Hacked Cloaking Device | -7/Factory | Hacked Imp. Flight Unit | -7/Factory | Hacked Combat Drone Bay | -7/Data Miner | Free Lgt. Regenerative Plating | -7/Data Miner | Free Cmb. Gravmag System | -7/Data Miner | Free Exp. Cesium-ion Thruster | -7/Data Miner | Free Exp. Sensor Array | -7/Data Miner | Free Exp. Terrain Scan Processor | -7/Data Miner | Free Tactical Coordination Suite | -7/Data Miner | Free Adv. EMP Blaster | -6/Factory | Scanalyzed Imp. Sensor Array | -6/Factory | Scanalyzed Imp. Propulsion Shielding | -6/Factory | Scanalyzed Lyr. Light Armor Plating | -6/Factory | Scanalyzed Beamcaster | -6/Zion | Free Battle Rifle | -6/Zion | Free Battle Cannon | -6/Zion | Free Enh. Flamer | -6/Zion | Free Robot Schematics ------------------ S-27 Virus | -7/Data Miner | Free G-50 Soldier | -7/Data Miner | Free G-67 Veteran | -7/Data Miner | Free P-70 Sage | -7/Data Miner | Free I-36 Angel | -7/Data Miner | Free I-47 Archangel | -7/Data Miner | Free Fabricated ------------ Imp. Hacking Suite | x1 | -7/Factory Imp. Hacking Suite | x1 | -7/Factory Imp. Hacking Suite | x1 | -7/Factory Exp. Cesium-ion Thruster | x1 | -6/Factory Cmb. Gravmag System | x2 | -5/Factory Cmb. Gravmag System | x2 | -5/Factory Combat Drone Bay | x1 | -5/Factory Lgt. Regenerative Plating | x1 | -3/Research Lgt. Regenerative Plating | x1 | -3/Research Cmb. Gravmag System | x2 | -3/Research Alien Tech Used ----------------- None Achievements -------------- None Challenges ------------ None Game ------ Seed RagnarokRecoilStorm Manual? 0 Play Time 06:17:26 Cumulative 290.1 hours Start 2021.04.03 @ 14:09:23 End 2021.06.17 @ 00:31:53 Sessions 19 Manual Loads 0 Difficulty Rogue Special Mode None Game No. 111 Rogue 111 Adventurer 0 Explorer 0 Win Type 0 Total 10 Types 8/0/1/1/0/0/0/0/0 Lore% 62 Gallery% 86 Achievement% 66 Wizard Run 0 Options --------- ASCII 0 Keyboard 0 Movement Numpad Keybinds 0 Fullscreen 1 Font 18/SmallcapsGlow Map View 76x50 Tactical HUD 1 Map Filters NONE Filters NONE Steam 1 RUN: f5e229df-504a-4922-9e6d-95e22c20b9f5